fUSD/lending_fUSD_20250814
["ID","MTS","AMOUNT","RATE_DAILY","PERIOD"]
[379203218,1755185499587,-1174.26522,0.00027671,7]
[379203219,1755185499596,-400.0,0.00027671,2]
[379203220,1755185499606,-400.0,0.00027671,2]
[379203221,1755185499615,-400.0,0.00027671,2]
[379203222,1755185499625,-579.507712,0.00027671,7]
[379203223,1755185499635,-579.507712,0.00027671,7]
[379203224,1755185499644,-255.17054078,0.00027671,2]
[379203225,1755185499654,-2326.69,0.00027671,2]
[379203226,1755185499664,-400.0,0.00027671,2]
[379203227,1755185499675,-579.507712,0.00027671,7]
[379203228,1755185499686,-579.507722,0.00027671,7]
[379203229,1755185499696,-400.0,0.00027671,2]
[379203230,1755185499705,-400.0,0.00027671,2]
[379203231,1755185499715,-1047.09,0.00027671,2]
[379203232,1755185499725,-400.0,0.00027671,2]
[379203233,1755185499734,-400.0,0.00027671,2]
[379203234,1755185499745,-400.0,0.00027671,2]
[379203235,1755185499754,-2944.03,0.00027671,2]
[379203236,1755185499764,-400.0,0.00027671,2]
[379203237,1755185499774,-400.0,0.00027671,2]
[379203238,1755185499784,-400.0,0.00027671,2]
[379203239,1755185499794,-257.34527235,0.00027671,2]
[379203240,1755185499804,-402.31106786,0.00027671,2]
[379203241,1755185499814,-529.85581772,0.00027671,2]
[379203242,1755185499824,-497.69295575,0.00027671,2]
[379203243,1755185499834,-400.0,0.00027671,2]
[379203244,1755185499844,-1072.61,0.00027671,2]
[379203245,1755185499854,-400.0,0.00027671,2]
[379203246,1755185499864,-500.0,0.00027671,2]
[379203247,1755185499874,-1670.88,0.00027671,2]
[379203248,1755185499884,-400.0,0.00027671,2]
[379203249,1755185499894,-164.729695,0.00027671,7]
[379203250,1755185499904,-400.0,0.00027671,2]
[379203251,1755185499914,-151.0,0.00027671,7]
[379203252,1755185499926,-151.0,0.00027671,7]
[379203253,1755185499936,-1845.18,0.00027671,2]
[379203254,1755185499946,-1375.3,0.00027671,2]
[379203255,1755185499956,-400.0,0.00027671,2]
[379203256,1755185499966,-400.0,0.00027671,2]
[379203257,1755185499976,-1571.84,0.00027671,2]
[379203258,1755185499988,-1416.18,0.00027671,2]
[379203259,1755185499998,-350.909002,0.00027671,7]
[379203260,1755185500008,-350.909002,0.00027671,7]
[379203261,1755185500018,-1126.96,0.00027671,2]
[379203262,1755185500028,-575.63,0.00027671,2]
[379203263,1755185500037,-350.909002,0.00027671,7]
[379203264,1755185500048,-350.909,0.00027671,7]
[379203265,1755185500058,-400.0,0.00027671,2]
[379203266,1755185500068,-400.0,0.00027671,2]
[379203267,1755185500078,-157.391826,0.00027671,7]
[379203268,1755185500088,-400.0,0.00027671,2]
[379203269,1755185500098,-400.0,0.00027671,2]
[379203270,1755185500108,-1854.2,0.00027671,2]
[379203271,1755185500118,-151.0,0.00027671,7]
[379203272,1755185500128,-400.0,0.00027671,2]
[379203273,1755185500142,-1417.13,0.00027671,2]
[379203274,1755185500152,-151.0,0.00027671,7]
[379203275,1755185500163,-177.604191,0.00027671,7]
[379203276,1755185500175,-151.0,0.00027671,7]
[379203277,1755185500185,-177.604191,0.00027671,7]
[379203278,1755185500196,-151.0,0.00027671,7]
[379203279,1755185500207,-177.604191,0.00027671,7]
[379203280,1755185500218,-400.0,0.00027671,2]
[379203281,1755185500228,-348.37734893,0.00027671,2]
[379203282,1755185500238,-400.0,0.00027671,2]
[379203283,1755185500248,-400.0,0.00027671,2]
[379203284,1755185500259,-478.05,0.00027671,2]
[379203285,1755185500269,-400.0,0.00027671,2]
[379203286,1755185500279,-177.604191,0.00027671,7]
[379203287,1755185500289,-151.0,0.00027671,2]
[379203288,1755185500301,-177.604191,0.00027671,7]
[379203289,1755185500311,-177.604191,0.00027671,7]
[379203290,1755185500321,-400.0,0.00027671,2]
[379203291,1755185500331,-972.4,0.00027671,2]
[379203292,1755185500341,-400.0,0.00027671,2]
[379203293,1755185500352,-400.0,0.00027671,2]
[379203294,1755185500362,-490.699439,0.00027671,7]
[379203295,1755185500372,-490.699439,0.00027671,7]
[379203296,1755185500382,-490.699439,0.00027671,7]
[379203297,1755185500392,-808.3,0.00027671,2]
[379203298,1755185500403,-400.0,0.00027671,2]
[379203299,1755185500414,-664.68,0.00027671,2]
[379203300,1755185500426,-490.699439,0.00027671,7]
[379203301,1755185500438,-490.699439,0.00027671,7]
[379203302,1755185500455,-490.699432,0.00027671,7]
[379203303,1755185500465,-400.0,0.00027671,2]
[379203304,1755185500475,-400.0,0.00027671,2]
[379203305,1755185500485,-2557.48,0.00027671,2]
[379203306,1755185500496,-400.0,0.00027671,2]
[379203307,1755185500506,-400.0,0.00027671,2]
[379203308,1755185500517,-1852.38,0.00027671,2]
[379203309,1755185500527,-2288.98,0.00027671,2]
[379203310,1755185500536,-400.0,0.00027671,2]
[379203311,1755185500546,-400.0,0.00027671,2]
[379203312,1755185500556,-470.17,0.00027671,2]
[379203313,1755185500567,-563.03,0.00027671,2]
[379203314,1755185500576,-400.0,0.00027671,2]
[379203315,1755185500587,-694.29,0.00027671,2]
[379203316,1755185500596,-2891.81,0.00027671,2]
[379203317,1755185500606,-1363.35,0.00027671,2]
[379203318,1755185500616,-400.0,0.00027671,2]
[379203319,1755185500626,-400.0,0.00027671,2]
[379203320,1755185500636,-727.61,0.00027671,2]
[379203321,1755185500646,-815.91,0.00027671,2]
[379203322,1755185500656,-403.37,0.00027671,2]
[379203323,1755185500666,-339.05016506,0.00027671,2]
[379203324,1755185500679,-611.94,0.00027671,2]
[379203325,1755185500689,-400.0,0.00027671,2]
[379203326,1755185500699,-400.0,0.00027671,2]
[379203327,1755185500709,-1871.43,0.00027671,2]
[379203328,1755185500719,-757.72,0.00027671,2]
[379203329,1755185500730,-941.81,0.00027671,2]
[379203330,1755185500739,-400.0,0.00027671,2]
[379203331,1755185500749,-461.377327,0.00027671,7]
[379203332,1755185500759,-400.0,0.00027671,2]
[379203333,1755185500769,-461.377327,0.00027671,7]
[379203334,1755185500780,-506.73,0.00027671,2]
[379203335,1755185500790,-839.81,0.00027671,2]
[379203336,1755185500800,-1182.0,0.00027671,2]
[379203337,1755185500810,-1029.93,0.00027671,2]
[379203338,1755185500820,-400.0,0.00027671,2]
[379203339,1755185500830,-457.83,0.00027671,2]
[379203340,1755185500840,-461.377327,0.00027671,7]
[379203341,1755185500850,-461.377324,0.00027671,7]
[379203342,1755185500860,-400.0,0.00027671,2]
[379203343,1755185500871,-953.48,0.00027671,2]
[379203344,1755185500880,-2633.43,0.00027671,2]
[379203345,1755185500891,-1276.56,0.00027671,2]
[379203346,1755185500901,-1988.68,0.00027671,2]
[379203347,1755185500911,-300.0,0.00027671,2]
[379203348,1755185500923,-477.57,0.00027671,2]
[379203349,1755185500934,-400.0,0.00027671,2]
[379203350,1755185500944,-1599.8,0.00027671,2]
[379203351,1755185500954,-151.0,0.00027671,7]
[379203352,1755185500965,-772.53,0.00027671,2]
[379203353,1755185500975,-1625.72,0.00027671,2]
[379203354,1755185500985,-839.45,0.00027671,2]
[379203355,1755185500996,-2573.23,0.00027671,2]
[379203356,1755185501006,-400.0,0.00027671,2]
[379203357,1755185501016,-400.0,0.00027671,2]
[379203358,1755185501026,-609.91,0.00027671,2]
[379203359,1755185501036,-601.91,0.00027671,2]
[379203360,1755185501046,-400.0,0.00027671,2]
[379203361,1755185501056,-400.0,0.00027671,2]
[379203362,1755185501066,-878.02,0.00027671,2]
[379203363,1755185501077,-472.87,0.00027671,2]
[379203364,1755185501088,-400.0,0.00027671,2]
[379203365,1755185501099,-466.49,0.00027671,2]
[379203366,1755185501109,-550.85,0.00027671,2]
[379203367,1755185501119,-566.99,0.00027671,2]
[379203368,1755185501129,-656.73,0.00027671,2]
[379203369,1755185501143,-405.11,0.00027671,2]
[379203370,1755185501154,-400.0,0.00027671,2]
[379203371,1755185501164,-400.0,0.00027671,2]
[379203372,1755185501179,-400.0,0.00027671,2]
[379203373,1755185501190,-898.67,0.00027671,2]
[379203374,1755185501200,-2148.71,0.00027671,2]
[379203375,1755185501211,-2819.78,0.00027671,2]
[379203376,1755185501222,-400.0,0.00027671,2]
[379203377,1755185501232,-2087.33,0.00027671,2]
[379203378,1755185501242,-400.0,0.00027671,2]
[379203379,1755185501253,-534.83,0.00027671,2]
[379203380,1755185501263,-400.0,0.00027671,2]
[379203381,1755185501272,-400.0,0.00027671,2]
[379203382,1755185501283,-2749.41,0.00027671,2]
[379203383,1755185501293,-400.0,0.00027671,2]
[379203384,1755185501304,-567.86,0.00027671,2]
[379203385,1755185501314,-400.0,0.00027671,2]
[379203386,1755185501324,-400.0,0.00027671,2]
[379203387,1755185501334,-906.89,0.00027671,2]
[379203388,1755185501344,-400.0,0.00027671,2]
[379203389,1755185501354,-400.0,0.00027671,2]
[379203390,1755185501364,-937.58,0.00027671,2]
[379203391,1755185501374,-3495.28,0.00027671,2]
[379203392,1755185501383,-767.250904,0.00027671,7]
[379203393,1755185501393,-767.250904,0.00027671,7]
[379203394,1755185501403,-400.0,0.00027671,2]
[379203395,1755185501413,-767.250904,0.00027671,7]
[379203396,1755185501425,-400.0,0.00027671,2]
[379203397,1755185501435,-400.0,0.00027671,2]
[379203398,1755185501445,-400.0,0.00027671,2]
[379203399,1755185501454,-767.250904,0.00027671,7]
[379203400,1755185501464,-767.250904,0.00027671,7]
[379203401,1755185501474,-767.2509,0.00027671,7]
[379203402,1755185501484,-400.0,0.00027671,2]
[379203403,1755185501494,-400.0,0.00027671,2]
[379203404,1755185501503,-824.99,0.00027671,2]
[379203405,1755185501513,-400.0,0.00027671,2]
[379203406,1755185501523,-400.0,0.00027671,2]
[379203407,1755185501533,-808.7,0.00027671,2]
[379203408,1755185501544,-400.0,0.00027671,2]
[379203409,1755185501554,-523.43,0.00027671,2]
[379203410,1755185501564,-400.0,0.00027671,2]
[379203411,1755185501574,-456.78,0.00027671,2]
[379203412,1755185501584,-400.0,0.00027671,2]
[379203413,1755185501594,-400.0,0.00027671,2]
[379203414,1755185501604,-400.0,0.00027671,2]
[379203415,1755185501615,-400.0,0.00027671,2]
[379203416,1755185501625,-400.0,0.00027671,2]
[379203417,1755185501634,-289.45073593,0.00027671,2]
[379203418,1755185501645,-1027.17,0.00027671,2]
[379203419,1755185501655,-472.71,0.00027671,2]
[379203420,1755185501665,-400.0,0.00027671,2]
[379203421,1755185501677,-400.0,0.00027671,2]
[379203422,1755185501687,-250.0,0.00027671,2]
[379203423,1755185501697,-400.0,0.00027671,2]
[379203424,1755185501706,-733.49,0.00027671,2]
[379203425,1755185501716,-1628.88,0.00027671,2]
[379203426,1755185501727,-400.0,0.00027671,2]
[379203427,1755185501736,-1477.247175,0.00027671,7]
[379203428,1755185501747,-421.82,0.00027671,2]
[379203429,1755185501758,-1477.247175,0.00027671,7]
[379203430,1755185501769,-1477.247175,0.00027671,7]
[379203431,1755185501778,-400.0,0.00027671,2]
[379203432,1755185501788,-287.34836906,0.00027671,2]
[379203433,1755185501798,-1477.247175,0.00027671,7]
[379203434,1755185501813,-400.0,0.00027671,2]
[379203435,1755185501826,-1460.13,0.00027671,2]
[379203436,1755185501836,-1477.247175,0.00027671,7]
[379203437,1755185502194,-400.0,0.00027671,2]
[379203438,1755185502205,-1477.247172,0.00027671,7]
[379203439,1755185502216,-400.0,0.00027671,2]
[379203440,1755185502226,-400.0,0.00027671,2]
[379203441,1755185502236,-400.0,0.00027671,2]
[379203442,1755185502246,-400.0,0.00027671,2]
[379203443,1755185502256,-1120.5,0.00027671,2]
[379203444,1755185502265,-1258.33,0.00027671,2]
[379203445,1755185502275,-473.55,0.00027671,2]
[379203446,1755185502285,-151.0,0.00027671,7]
[379203447,1755185502294,-400.0,0.00027671,2]
[379203448,1755185502304,-265.622282,0.00027671,7]
[379203449,1755185502314,-400.0,0.00027671,2]
[379203450,1755185502325,-400.0,0.00027671,2]
[379203451,1755185502336,-643.25,0.00027671,2]
[379203452,1755185502346,-812.19,0.00027671,2]
[379203453,1755185502356,-400.0,0.00027671,2]
[379203454,1755185502365,-3592.83,0.00027671,2]
[379203455,1755185502376,-1167.94,0.00027671,2]
[379203456,1755185502386,-400.0,0.00027671,2]
[379203457,1755185502396,-400.0,0.00027671,2]
[379203458,1755185502406,-543.09,0.00027671,2]
[379203459,1755185502416,-400.0,0.00027671,2]
[379203460,1755185502431,-400.0,0.00027671,2]
[379203461,1755185502442,-400.0,0.00027671,2]
[379203462,1755185502452,-400.0,0.00027671,2]
[379203463,1755185502462,-400.0,0.00027671,2]
[379203464,1755185502472,-400.0,0.00027671,2]
[379203465,1755185502482,-1103.19,0.00027671,2]
[379203466,1755185502491,-904.57,0.00027671,2]
[379203467,1755185502501,-400.0,0.00027671,2]
[379203468,1755185502511,-1927.69,0.00027671,2]
[379203469,1755185502522,-2661.37,0.00027671,2]
[379203470,1755185502531,-400.0,0.00027671,2]
[379203471,1755185502540,-400.0,0.00027671,2]
[379203472,1755185502549,-1139.76,0.00027671,2]
[379203473,1755185502559,-400.0,0.00027671,2]
[379203474,1755185502569,-1304.49,0.00027671,2]
[379203475,1755185502580,-1641.15,0.00027671,2]
[379203476,1755185502589,-3415.94,0.00027671,2]
[379203477,1755185502599,-1021.49,0.00027671,2]
[379203478,1755185502609,-712.2,0.00027671,2]
[379203479,1755185502618,-1151.23,0.00027671,2]
[379203480,1755185502628,-400.0,0.00027671,2]
[379203481,1755185502638,-842.84,0.00027671,2]
[379203482,1755185502647,-1149.42,0.00027671,2]
[379203483,1755185502656,-812.08,0.00027671,2]
[379203484,1755185502666,-697.11,0.00027671,2]
[379203485,1755185502679,-915.56,0.00027671,2]
[379203486,1755185502688,-400.0,0.00027671,2]
[379203487,1755185502698,-1398.5,0.00027671,2]
[379203488,1755185502708,-2033.51,0.00027671,2]
[379203489,1755185502718,-995.39,0.00027671,2]
[379203490,1755185502727,-725.5,0.00027671,2]
[379203491,1755185502736,-561.3,0.00027671,2]
[379203492,1755185502746,-151.0,0.00027671,7]
[379203493,1755185502756,-656.12,0.00027671,2]
[379203494,1755185502766,-190.82074,0.00027671,7]
[379203495,1755185502776,-400.0,0.00027671,2]
[379203496,1755185502786,-2155.92,0.00027671,2]
[379203497,1755185502796,-1141.99,0.00027671,2]
[379203498,1755185502806,-400.0,0.00027671,2]
[379203499,1755185502816,-400.0,0.00027671,2]
[379203500,1755185502827,-400.0,0.00027671,2]
[379203501,1755185502837,-406.89,0.00027671,2]
[379203502,1755185502847,-400.0,0.00027671,2]
[379203503,1755185502857,-1177.51,0.00027671,2]
[379203504,1755185502867,-985.81,0.00027671,2]
[379203505,1755185502877,-400.0,0.00027671,2]
[379203506,1755185502887,-502.96,0.00027671,2]
[379203507,1755185502898,-975.14,0.00027671,2]
[379203509,1755185502908,-429.03,0.00027671,2]
[379203510,1755185502918,-400.0,0.00027671,2]
[379203511,1755185502931,-966.6,0.00027671,2]
[379203512,1755185502940,-2147.72,0.00027671,2]
[379203513,1755185502949,-160.87151463,0.00027671,2]
[379203514,1755185502960,-400.0,0.00027671,2]
[379203515,1755185502970,-400.0,0.00027671,2]
[379203516,1755185502979,-863.92,0.00027671,2]
[379203517,1755185502989,-746.14,0.00027671,2]
[379203518,1755185502999,-400.0,0.00027671,2]
[379203519,1755185503008,-892.64,0.00027671,2]
[379203520,1755185503018,-1118.96,0.00027671,2]
[379203521,1755185503028,-2015.03,0.00027671,2]
[379203522,1755185503038,-400.0,0.00027671,2]
[379203523,1755185503048,-400.0,0.00027671,2]
[379203524,1755185503058,-1965.52,0.00027671,2]
[379203525,1755185503068,-400.0,0.00027671,2]
[379203526,1755185503078,-2019.62,0.00027671,2]
[379203527,1755185503089,-400.0,0.00027671,2]
[379203528,1755185503099,-400.0,0.00027671,2]
[379203529,1755185503110,-400.0,0.00027671,2]
[379203530,1755185503120,-883.01,0.00027671,2]
[379203531,1755185503130,-400.0,0.00027671,2]
[379203532,1755185503145,-400.0,0.00027671,2]
[379203533,1755185503155,-1195.07,0.00027671,2]
[379203534,1755185503164,-400.0,0.00027671,2]
[379203535,1755185503179,-4694.06,0.00027671,2]
[379203536,1755185503188,-400.0,0.00027671,2]
[379203537,1755185503199,-400.0,0.00027671,2]
[379203538,1755185503208,-400.0,0.00027671,2]
[379203539,1755185503219,-435.26,0.00027671,2]
[379203540,1755185503229,-670.25,0.00027671,2]
[379203541,1755185503239,-582.84,0.00027671,2]
[379203542,1755185503249,-432.95,0.00027671,2]
[379203543,1755185503259,-814.15,0.00027671,2]
[379203544,1755185503269,-2919.01,0.00027671,2]
[379203545,1755185503279,-2239.205914,0.00027671,7]
[379203546,1755185503288,-2239.205914,0.00027671,7]
[379203547,1755185503299,-2239.205914,0.00027671,7]
[379203548,1755185503309,-400.0,0.00027671,2]
[379203549,1755185503319,-400.0,0.00027671,2]
[379203551,1755185503329,-1068.16,0.00027671,2]
[379203552,1755185503339,-1779.37,0.00027671,2]
[379203553,1755185503348,-1788.51,0.00027671,2]
[379203554,1755185503358,-2239.205914,0.00027671,7]
[379203555,1755185503368,-1009.91,0.00027671,2]
[379203556,1755185503378,-2239.205914,0.00027671,7]
[379203557,1755185503388,-2937.87,0.00027671,2]
[379203558,1755185503397,-709.12,0.00027671,2]
[379203559,1755185503407,-2239.205914,0.00027671,7]
[379203560,1755185503417,-448.55,0.00027671,2]
[379203561,1755185503429,-1266.11,0.00027671,2]
[379203562,1755185503438,-400.0,0.00027671,2]
[379203563,1755185503448,-400.0,0.00027671,2]
[379203564,1755185503458,-1737.48,0.00027671,2]
[379203565,1755185503468,-685.83,0.00027671,2]
[379203566,1755185503477,-2063.92,0.00027671,2]
[379203567,1755185503487,-4646.19,0.00027671,2]
[379203568,1755185503497,-1223.1,0.00027671,2]
[379203569,1755185503507,-1007.08,0.00027671,2]
[379203570,1755185503516,-1927.33,0.00027671,2]
[379203571,1755185503526,-910.53,0.00027671,2]
[379203572,1755185503536,-1220.99,0.00027671,2]
[379203573,1755185503545,-836.87,0.00027671,2]
[379203574,1755185503555,-400.0,0.00027671,2]
[379203575,1755185503565,-561.27,0.00027671,2]
[379203576,1755185503574,-400.0,0.00027671,2]
[379203577,1755185503584,-602.22,0.00027671,2]
[379203578,1755185503594,-400.0,0.00027671,2]
[379203579,1755185503603,-543.66,0.00027671,2]
[379203580,1755185503613,-400.0,0.00027671,2]
[379203581,1755185503623,-4302.08,0.00027671,2]
[379203582,1755185503632,-400.0,0.00027671,2]
[379203583,1755185503642,-1947.07,0.00027671,2]
[379203584,1755185503651,-2942.31,0.00027671,2]
[379203585,1755185503661,-2073.61,0.00027671,2]
[379203586,1755185503670,-2925.17,0.00027671,2]
[379203587,1755185503682,-400.0,0.00027671,2]
[379203588,1755185503692,-609.39,0.00027671,2]
[379203589,1755185503702,-400.0,0.00027671,2]
[379203590,1755185503711,-4202.312341,0.00027671,7]
[379203591,1755185503720,-1261.95,0.00027671,2]
[379203592,1755185503729,-4202.312341,0.00027671,7]
[379203593,1755185503739,-601.11,0.00027671,2]
[379203594,1755185503748,-440.56,0.00027671,2]
[379203595,1755185503758,-683.8,0.00027671,2]
[379203596,1755185503767,-1067.57,0.00027671,2]
[379203597,1755185503776,-400.0,0.00027671,2]
[379203598,1755185503785,-4202.312341,0.00027671,7]
[379203599,1755185503795,-400.0,0.00027671,2]
[379203600,1755185503804,-4202.312341,0.00027671,7]
[379203602,1755185503814,-400.0,0.00027671,2]
[379203603,1755185503824,-1886.64,0.00027671,2]
[379203604,1755185503833,-400.0,0.00027671,2]
[379203605,1755185503842,-876.09,0.00027671,2]
[379203606,1755185503851,-3399.56,0.00027671,2]
[379203607,1755185503861,-400.0,0.00027671,2]
[379203608,1755185503870,-1673.17,0.00027671,2]
[379203609,1755185503880,-400.0,0.00027671,2]
[379203610,1755185503889,-446.11,0.00027671,2]
[379203611,1755185503898,-1500.69,0.00027671,2]
[379203612,1755185503907,-2875.13,0.00027671,2]
[379203613,1755185503916,-505.65,0.00027671,2]
[379203614,1755185503928,-400.0,0.00027671,2]
[379203615,1755185503937,-400.0,0.00027671,2]
[379203616,1755185503947,-400.0,0.00027671,2]
[379203617,1755185503956,-495.7,0.00027671,2]
[379203618,1755185503965,-400.0,0.00027671,2]
[379203619,1755185503974,-400.0,0.00027671,2]
[379203620,1755185503983,-427.96,0.00027671,2]
[379203621,1755185503993,-420.47,0.00027671,2]
[379203622,1755185504002,-869.92,0.00027671,2]
[379203623,1755185504012,-520.02,0.00027671,2]
[379203624,1755185504021,-400.0,0.00027671,2]
[379203625,1755185504030,-400.0,0.00027671,2]
[379203626,1755185504039,-955.46,0.00027671,2]
[379203627,1755185504048,-1767.72,0.00027671,2]
[379203628,1755185504057,-1837.81,0.00027671,2]
[379203629,1755185504067,-1838.44,0.00027671,2]
[379203630,1755185504076,-400.0,0.00027671,2]
[379203631,1755185504086,-6471.93,0.00027671,2]
[379203632,1755185504095,-1043.23,0.00027671,2]
[379203633,1755185504105,-400.0,0.00027671,2]
[379203634,1755185504114,-1699.42,0.00027671,2]
[379203635,1755185504124,-1499.54,0.00027671,2]
[379203636,1755185504136,-400.0,0.00027671,2]
[379203637,1755185504148,-400.0,0.00027671,2]
[379203638,1755185504158,-400.0,0.00027671,2]
[379203639,1755185504168,-1158.0,0.00027671,2]
[379203640,1755185504181,-1417.52,0.00027671,2]
[379203641,1755185504190,-4055.59,0.00027671,2]
[379203642,1755185504200,-400.0,0.00027671,2]
[379203643,1755185504210,-5260.64,0.00027671,2]
[379203644,1755185504220,-2032.85,0.00027671,2]
[379203645,1755185504231,-400.0,0.00027671,2]
[379203646,1755185504240,-1315.83,0.00027671,2]
[379203647,1755185504250,-400.0,0.00027671,2]
[379203648,1755185504259,-4504.75,0.00027671,2]
[379203649,1755185504269,-3006.36,0.00027671,2]
[379203650,1755185504279,-400.0,0.00027671,2]
[379203651,1755185504288,-452.07,0.00027671,2]
[379203652,1755185504298,-400.0,0.00027671,2]
[379203653,1755185504307,-400.0,0.00027671,2]
[379203654,1755185504317,-1647.08,0.00027671,2]
[379203655,1755185504327,-400.0,0.00027671,2]
[379203656,1755185504336,-2335.488269,0.00027671,7]
[379203657,1755185504346,-2373.06,0.00027671,2]
[379203658,1755185504356,-400.0,0.00027671,2]
[379203659,1755185504366,-1732.49,0.00027671,2]
[379203660,1755185504375,-637.89,0.00027671,2]
[379203661,1755185504385,-400.0,0.00027671,2]
[379203662,1755185504394,-1303.2,0.00027671,2]
[379203663,1755185504404,-1797.23,0.00027671,2]
[379203664,1755185504413,-493.95,0.00027671,2]
[379203665,1755185504423,-1001.65,0.00027671,2]
[379203666,1755185504434,-400.0,0.00027671,2]
[379203667,1755185504443,-2335.488269,0.00027671,7]
[379203668,1755185504453,-400.0,0.00027671,2]
[379203669,1755185504463,-1929.46,0.00027671,2]
[379203670,1755185504472,-400.0,0.00027671,2]
[379203671,1755185504481,-400.0,0.00027671,2]
[379203672,1755185504492,-1166.31,0.00027671,2]
[379203673,1755185504501,-400.0,0.00027671,2]
[379203674,1755185504511,-2049.41,0.00027671,2]
[379203675,1755185504520,-400.0,0.00027671,2]
[379203676,1755185504653,-4465.37,0.00027671,2]
[379203677,1755185504663,-963.47,0.00027671,2]
[379203678,1755185504673,-948.84,0.00027671,2]
[379203679,1755185504686,-1408.02,0.00027671,2]
[379203680,1755185504696,-1530.82,0.00027671,2]
[379203681,1755185504705,-400.0,0.00027671,2]
[379203682,1755185504714,-400.0,0.00027671,2]
[379203683,1755185504723,-3046.31,0.00027671,2]
[379203684,1755185504733,-400.0,0.00027671,2]
[379203685,1755185504742,-561.68,0.00027671,2]
[379203686,1755185504751,-400.0,0.00027671,2]
[379203687,1755185504760,-400.0,0.00027671,2]
[379203688,1755185504770,-447.53,0.00027671,2]
[379203689,1755185504780,-2962.88,0.00027671,2]
[379203690,1755185504789,-1003.23,0.00027671,2]
[379203691,1755185504798,-1209.98,0.00027671,2]
[379203692,1755185504807,-400.0,0.00027671,2]
[379203693,1755185504816,-875.45,0.00027671,2]
[379203694,1755185504825,-1083.08,0.00027671,2]
[379203695,1755185504834,-2840.9,0.00027671,2]
[379203696,1755185504844,-334.13,0.00027671,2]
[379203697,1755185504853,-1409.28,0.00027671,2]
[379203698,1755185504863,-1007.0,0.00027671,2]
[379203699,1755185504872,-1058.18,0.00027671,2]
[379203700,1755185504881,-400.0,0.00027671,2]
[379203701,1755185504891,-460.85,0.00027671,2]
[379203702,1755185504900,-400.0,0.00027671,2]
[379203703,1755185504911,-754.34,0.00027671,2]
[379203704,1755185504920,-400.0,0.00027671,2]
[379203705,1755185504932,-231.96483,0.00027671,7]
[379203706,1755185504942,-402.65,0.00027671,2]
[379203707,1755185504951,-400.0,0.00027671,2]
[379203708,1755185504960,-400.0,0.00027671,2]
[379203709,1755185504969,-400.0,0.00027671,2]
[379203710,1755185504979,-1839.09,0.00027671,2]
[379203711,1755185504988,-400.0,0.00027671,2]
[379203712,1755185504997,-231.96483,0.00027671,7]
[379203713,1755185505007,-400.0,0.00027671,2]
[379203714,1755185505016,-400.0,0.00027671,2]
[379203715,1755185505027,-4005.22,0.00027671,2]
[379203716,1755185505036,-658.03,0.00027671,2]
[379203717,1755185505046,-1041.8,0.00027671,2]
[379203718,1755185505056,-400.0,0.00027671,2]
[379203719,1755185505066,-3799.27,0.00027671,2]
[379203720,1755185505077,-420.935082,0.00027671,7]